bitfinex/quotes_BTCUSD_20251001
["timestamp","ask_amount","ask_price","bid_price","bid_amount"]
[1759277067376,0.11949547,114160.0,114150.0,7.47292847]
[1759277068846,0.29468818,114160.0,114150.0,7.47292847]
[1759277070945,0.11626547,114160.0,114150.0,7.27110647]
[1759277071169,0.11949547,114160.0,114150.0,7.27110647]
[1759277073658,0.11949547,114160.0,114150.0,7.27094647]
[1759277076579,0.11626547,114160.0,114150.0,7.27094647]
[1759277077091,0.11626547,114160.0,114150.0,7.27086647]
[1759277077348,0.11949547,114160.0,114150.0,7.27086647]
[1759277077837,0.11949547,114160.0,114150.0,7.26874647]
[1759277079790,0.11949547,114160.0,114150.0,7.27086647]
[1759277080328,0.11626547,114160.0,114150.0,7.27086647]
[1759277084008,0.02489,114160.0,114150.0,7.27407647]
[1759277084213,0.02489,114160.0,114150.0,7.33669287]
[1759277085401,0.02489,114160.0,114150.0,7.27407647]
[1759277085582,0.02489,114160.0,114150.0,7.30036637]
[1759277086208,0.02489,114160.0,114150.0,6.23060637]
[1759277086350,0.02489,114160.0,114150.0,7.30032637]
[1759277086557,0.02489,114160.0,114150.0,6.23060637]
[1759277086762,0.02489,114160.0,114150.0,7.30028637]
[1759277087660,0.02489,114160.0,114150.0,6.84484637]
[1759277087865,0.02489,114160.0,114150.0,7.30024637]
[1759277089765,0.02489,114160.0,114150.0,7.20912637]
[1759277089971,0.02489,114160.0,114150.0,7.30020637]
[1759277090771,0.02489,114160.0,114150.0,7.38955184]
[1759277091558,0.02489,114160.0,114150.0,7.38939184]
[1759277091979,0.02489,114160.0,114150.0,7.39039184]
[1759277093082,0.02489,114160.0,114150.0,7.29935184]
[1759277093334,0.02489,114160.0,114150.0,6.93503184]
[1759277093515,0.02489,114160.0,114150.0,7.39035184]
[1759277093705,0.02489,114160.0,114150.0,6.32099184]
[1759277093865,0.02489,114160.0,114150.0,7.39035184]
[1759277094852,0.0002,114200.0,114190.0,0.17514668]
[1759277095054,0.08958547,114200.0,114190.0,6.46251668]
[1759277095259,0.09167547,114200.0,114190.0,6.46466668]
[1759277095407,0.09482547,114200.0,114190.0,6.46466668]
[1759277096052,0.09529171,114200.0,114190.0,6.46466668]
[1759277096856,0.10229171,114200.0,114190.0,6.46466668]
[1759277097081,0.12547171,114200.0,114190.0,6.46466668]
[1759277097278,0.12547171,114200.0,114190.0,6.86728363]
[1759277097474,0.12232171,114200.0,114190.0,7.23371363]
[1759277097889,0.12023171,114200.0,114190.0,7.23371363]
[1759277098071,0.02384624,114200.0,114190.0,7.23694363]
[1759277098469,0.02884624,114200.0,114190.0,7.26322653]
[1759277098883,0.02884624,114200.0,114190.0,6.19390653]
[1759277099078,0.02884624,114200.0,114190.0,7.26314653]
[1759277100204,0.02884624,114200.0,114190.0,7.352532]
[1759277101030,0.02884624,114200.0,114190.0,7.261452]
[1759277101240,0.02384624,114200.0,114190.0,7.352492]
[1759277101453,0.02384624,114200.0,114190.0,7.261452]
[1759277101663,0.02384624,114200.0,114190.0,6.283292]
[1759277101850,0.02384624,114200.0,114190.0,7.352612]
[1759277102408,0.02384624,114200.0,114190.0,6.283292]
[1759277102747,0.02384624,114200.0,114190.0,7.352612]
[1759277103685,0.02384624,114200.0,114190.0,6.283292]
[1759277103891,0.02384624,114200.0,114190.0,7.352692]
[1759277104106,0.02384624,114200.0,114190.0,6.283292]
[1759277104420,0.02384624,114200.0,114190.0,7.352732]
[1759277106307,0.02384624,114200.0,114190.0,7.07505932]
[1759277106503,0.02384624,114200.0,114190.0,6.180766]
[1759277106730,0.02384624,114200.0,114190.0,7.250046]
[1759277106931,0.02384624,114200.0,114190.0,6.180766]
[1759277107333,0.02384624,114200.0,114190.0,7.158966]
[1759277107537,0.02384624,114200.0,114190.0,6.794766]
[1759277107748,0.02384624,114200.0,114190.0,7.250006]
[1759277108641,0.02384624,114200.0,114190.0,6.180766]
[1759277109053,0.02384624,114200.0,114190.0,7.250006]
[1759277109468,0.02384624,114200.0,114190.0,6.180766]
[1759277109724,0.02384624,114200.0,114190.0,7.250006]
[1759277110322,0.02384624,114200.0,114190.0,7.000206]
[1759277110525,0.02593624,114200.0,114190.0,6.90759053]
[1759277110740,0.02593624,114200.0,114190.0,7.15731053]
[1759277110875,0.02384624,114200.0,114190.0,7.16054053]
[1759277111764,0.02384624,114200.0,114190.0,7.249926]
[1759277115471,0.0002,114220.0,114210.0,0.51511601]
[1759277115675,0.0002466,114220.0,114210.0,6.24456001]
[1759277115884,0.0002466,114220.0,114210.0,6.27302001]
[1759277116387,0.0002466,114220.0,114210.0,6.2992957]
[1759277117246,0.0002466,114220.0,114210.0,6.4631757]
[1759277118012,0.0052466,114220.0,114210.0,6.4631757]
[1759277118248,0.0002466,114220.0,114210.0,6.30292117]
[1759277118388,0.0002466,114220.0,114210.0,7.37188117]
[1759277121171,0.0002466,114220.0,114210.0,6.30292117]
[1759277121387,0.0002466,114220.0,114210.0,7.37176117]
[1759277121579,0.0002466,114220.0,114210.0,7.43419337]
[1759277121910,0.0002466,114220.0,114210.0,6.36535337]
[1759277122121,0.0002466,114220.0,114210.0,7.43415337]
[1759277122378,0.0002466,114220.0,114210.0,7.37172117]
[1759277122998,0.0002466,114220.0,114210.0,7.37168117]
[1759277123408,0.0002466,114220.0,114210.0,7.28068117]
[1759277123622,0.0002466,114220.0,114210.0,6.30292117]
[1759277123987,0.0002466,114220.0,114210.0,7.37164117]
[1759277124572,0.0002466,114220.0,114210.0,6.30292117]
[1759277124783,0.0002466,114220.0,114210.0,7.37164117]
[1759277125962,0.0002466,114220.0,114210.0,7.43407337]
[1759277126198,0.0002466,114220.0,114210.0,6.36535337]
[1759277126381,0.0002466,114220.0,114210.0,7.37164117]
[1759277126529,0.0002466,114220.0,114210.0,7.28060117]
[1759277126733,0.0002466,114220.0,114210.0,7.37160117]
[1759277128158,0.0002466,114220.0,114210.0,7.37156117]
[1759277129367,0.0002466,114220.0,114210.0,6.30292117]
[1759277129574,0.0002466,114220.0,114210.0,7.37156117]
[1759277129789,0.0002466,114220.0,114210.0,6.30292117]
[1759277130025,0.0002466,114220.0,114210.0,7.37152117]
[1759277131881,0.0002466,114220.0,114210.0,6.30292117]
[1759277132085,0.0002466,114220.0,114210.0,7.37144117]
[1759277133440,0.0002466,114220.0,114210.0,7.37136117]
[1759277135638,0.0184266,114230.0,114220.0,0.17510068]
[1759277135833,0.0184266,114230.0,114220.0,5.90733468]
[1759277136040,0.0184266,114230.0,114220.0,5.93191468]
[1759277136510,0.0184266,114230.0,114220.0,5.99614584]
[1759277138513,0.07295609,114270.0,114260.0,0.17503938]
[1759277138726,0.17265181,114270.0,114260.0,0.87935938]
[1759277138882,0.17265181,114270.0,114260.0,0.90193938]
[1759277139246,0.17589181,114270.0,114260.0,0.90193938]
[1759277139440,0.10293572,114270.0,114260.0,0.90193938]
[1759277139588,0.09476525,114270.0,114260.0,0.90193938]
[1759277140456,0.09476525,114270.0,114260.0,0.93827353]
[1759277142668,0.10076525,114270.0,114260.0,0.93827353]
[1759277144927,0.10076525,114270.0,114260.0,0.23395353]
[1759277145149,0.10076525,114270.0,114260.0,0.93823353]
[1759277145582,0.10076525,114270.0,114260.0,0.76319415]
[1759277146222,0.10076525,114270.0,114260.0,0.93823353]
[1759277146638,0.10076525,114270.0,114260.0,1.00355819]
[1759277148295,0.09576525,114270.0,114260.0,1.00355819]
[1759277149039,0.09576525,114270.0,114260.0,0.29927819]
[1759277149243,0.27897784,114270.0,114260.0,1.00355819]
[1759277149485,0.27897784,114270.0,114260.0,0.29927819]
[1759277149641,0.27897784,114270.0,114260.0,1.00355819]
[1759277151070,0.27897784,114270.0,114260.0,0.29927819]
[1759277151280,0.27897784,114270.0,114260.0,1.00351819]
[1759277151525,0.27897784,114270.0,114260.0,0.29927819]
[1759277151733,0.27897784,114270.0,114260.0,1.00351819]
[1759277154590,0.27897784,114270.0,114260.0,0.91251819]
[1759277154791,0.27897784,114270.0,114260.0,1.00351819]
[1759277155205,0.27897784,114270.0,114260.0,0.91251819]
[1759277155408,0.27897784,114270.0,114260.0,1.00351819]
[1759277155614,0.27897784,114270.0,114260.0,0.91251819]
[1759277156041,0.27897784,114270.0,114260.0,1.00351819]
[1759277156237,0.27897784,114270.0,114260.0,0.91251819]
[1759277156439,0.27897784,114270.0,114260.0,1.00351819]
[1759277156888,0.27897784,114270.0,114260.0,0.29927819]
[1759277157191,0.27897784,114270.0,114260.0,1.00351819]
[1759277157401,0.27897784,114270.0,114260.0,0.29927819]
[1759277157536,0.27897784,114270.0,114260.0,1.00351819]
[1759277157946,0.42397784,114270.0,114260.0,1.00351819]
[1759277159355,0.41578931,114270.0,114260.0,1.00351819]
[1759277159881,0.41578931,114270.0,114260.0,0.24036404]
[1759277160263,0.42398553,114270.0,114260.0,0.24036404]
[1759277160438,0.42398553,114270.0,114260.0,0.94460404]
[1759277160892,0.42398553,114270.0,114260.0,0.06532466]
[1759277161095,0.42398553,114270.0,114260.0,0.76956466]
[1759277161522,0.17503938,114260.0,114250.0,0.39881335]
[1759277161722,0.26651485,114260.0,114250.0,1.27810805]
[1759277161974,0.26945485,114260.0,114250.0,1.30155805]
[1759277163104,0.27345485,114260.0,114250.0,1.30155805]
[1759277163558,0.27345485,114260.0,114250.0,0.23327805]
[1759277163760,0.27345485,114260.0,114250.0,0.93751805]
[1759277165249,0.27345485,114260.0,114250.0,0.76246335]
[1759277165559,0.27345485,114260.0,114250.0,0.05822335]
[1759277165762,0.27345485,114260.0,114250.0,0.93751805]
[1759277166594,0.27345485,114260.0,114250.0,1.00286155]
[1759277168588,0.09338547,114260.0,114250.0,6.48478555]
[1759277168799,0.09338547,114260.0,114250.0,6.48783555]
[1759277169635,0.004,114260.0,114250.0,6.82783555]
[1759277171138,0.004,114260.0,114250.0,6.91722102]
[1759277171348,0.004,114260.0,114250.0,6.97965322]
[1759277171569,0.006,114260.0,114250.0,7.00591736]
[1759277172851,0.006,114260.0,114250.0,7.02175566]
[1759277173234,0.16962978,114270.0,114260.0,0.17503938]
[1759277173444,0.16962978,114270.0,114260.0,5.73987965]
[1759277173742,0.16962978,114270.0,114260.0,5.74582572]
[1759277174714,0.17162978,114270.0,114260.0,5.74582572]
[1759277175226,0.17162978,114270.0,114260.0,5.99498572]
[1759277176226,1e-08,114270.0,114260.0,6.42437119]
[1759277176428,0.00028,114280.0,114270.0,0.51502406]
[1759277176744,0.00028,114280.0,114270.0,6.08726353]
[1759277176898,0.00028,114280.0,114270.0,7.18099353]
[1759277177087,0.00028,114280.0,114270.0,7.18449474]
[1759277177488,0.00028,114280.0,114270.0,6.11633474]
[1759277177899,0.00028,114280.0,114270.0,7.18549474]
[1759277178326,0.00028,114280.0,114270.0,6.84682927]
[1759277178535,0.00028,114280.0,114270.0,5.68489927]
[1759277178536,0.00226,114280.0,114270.0,5.68489927]
[1759277178749,0.00549,114280.0,114270.0,6.74735806]
[1759277179161,0.00549,114280.0,114270.0,7.08735806]
[1759277179853,0.00549,114280.0,114270.0,7.08739806]
[1759277181053,0.00549,114280.0,114270.0,6.63243806]
[1759277181255,0.00549,114280.0,114270.0,7.08735806]
[1759277181678,0.00028,114280.0,114270.0,7.09274806]
[1759277183314,0.375525,114280.0,114270.0,7.09274806]
[1759277184920,0.375525,114280.0,114270.0,6.02466806]
[1759277185126,0.375525,114280.0,114270.0,7.09282806]
[1759277187246,0.375525,114280.0,114270.0,7.09270806]
[1759277187465,0.375525,114280.0,114270.0,7.09274806]
[1759277188775,0.375525,114280.0,114270.0,6.02466806]
[1759277188988,0.375525,114280.0,114270.0,7.09274806]
[1759277189189,0.375525,114280.0,114270.0,6.02466806]
[1759277189393,0.377645,114280.0,114270.0,6.02141806]
[1759277189598,0.377645,114280.0,114270.0,7.08945806]
[1759277190031,0.377645,114280.0,114270.0,6.63457806]
[1759277190249,0.377645,114280.0,114270.0,6.02141806]
[1759277190389,0.377645,114280.0,114270.0,7.08941806]
[1759277191150,0.375525,114280.0,114270.0,6.02141806]
[1759277191355,0.375525,114280.0,114270.0,7.09266806]
[1759277191658,0.375525,114280.0,114270.0,6.02141806]
[1759277191886,0.375525,114280.0,114270.0,7.09262806]
[1759277192491,0.375525,114280.0,114270.0,6.02466806]
[1759277192694,0.375525,114280.0,114270.0,7.09262806]
[1759277193005,0.375525,114280.0,114270.0,6.02466806]
[1759277193178,0.380785,114280.0,114270.0,6.63235806]
[1759277193371,0.380785,114280.0,114270.0,6.99627806]
[1759277193601,0.380785,114280.0,114270.0,7.08723806]
[1759277193840,0.377645,114280.0,114270.0,7.08937806]
[1759277193959,0.377645,114280.0,114270.0,6.02141806]
[1759277194163,0.377645,114280.0,114270.0,7.08933806]
[1759277194892,0.377645,114280.0,114270.0,6.02141806]
[1759277195098,0.380785,114280.0,114270.0,6.01927806]
[1759277195349,0.64517922,114280.0,114270.0,6.83807806]
[1759277195470,0.64517922,114280.0,114270.0,6.01927806]
[1759277195676,0.64517922,114280.0,114270.0,1.26743406]
[1759277195938,0.64517922,114280.0,114270.0,1.17647406]
[1759277196135,0.64517922,114280.0,114270.0,1.26743406]
[1759277197027,0.64517922,114280.0,114270.0,1.09241]
[1759277197596,0.64517922,114280.0,114270.0,1.26743406]
[1759277197794,0.64517922,114280.0,114270.0,0.19947406]
[1759277198006,0.64517922,114280.0,114270.0,1.09241]
[1759277198572,0.64517922,114280.0,114270.0,1.26743406]
[1759277198774,0.64517922,114280.0,114270.0,0.75229]
[1759277198996,0.64517922,114280.0,114270.0,1.09237]
[1759277199411,0.64517922,114280.0,114270.0,0.84325]
[1759277199596,0.64517922,114280.0,114270.0,0.72845]
[1759277201339,0.64517922,114280.0,114270.0,0.72745]
[1759277201925,0.64617922,114280.0,114270.0,0.72745]
[1759277202171,0.64617922,114280.0,114270.0,0.02345]
[1759277202335,0.64617922,114280.0,114270.0,0.72809]
[1759277202938,0.64617922,114280.0,114270.0,0.02345]
[1759277203117,0.64617922,114280.0,114270.0,0.72813]
[1759277207283,0.64617922,114280.0,114270.0,0.90315406]
[1759277207685,0.64617922,114280.0,114270.0,0.72813]
[1759277210352,0.64617922,114280.0,114270.0,0.90315406]
[1759277212241,0.64617922,114280.0,114270.0,0.72813]
[1759277212975,0.47117047,114280.0,114270.0,0.90315406]
[1759277213168,0.64617922,114280.0,114270.0,0.90315406]
[1759277214530,0.64617922,114280.0,114270.0,0.72813]
[1759277214844,0.64617922,114280.0,114270.0,0.455]
[1759277215256,0.64617922,114280.0,114270.0,0.63002406]
[1759277216210,0.64617922,114280.0,114270.0,0.87962406]
[1759277217157,0.64617922,114280.0,114270.0,0.90221406]
[1759277217381,0.64617922,114280.0,114270.0,0.72719]
[1759277217746,0.64617922,114280.0,114270.0,0.02259]
[1759277217948,0.64617922,114280.0,114270.0,0.72715]
[1759277218495,0.64617922,114280.0,114270.0,0.90217406]
[1759277220273,0.64617922,114280.0,114270.0,0.02259]
[1759277220452,0.64617922,114280.0,114270.0,0.72715]
[1759277220858,0.64617922,114280.0,114270.0,0.90217406]
[1759277224573,0.64617922,114280.0,114270.0,0.27203]
[1759277224768,0.64617922,114280.0,114270.0,0.72703]
[1759277225185,0.64617922,114280.0,114260.0,0.17503841]
[1759277225388,0.57659375,114280.0,114270.0,6.434804]
[1759277225629,0.57659375,114280.0,114270.0,0.455]
[1759277225975,0.57984375,114280.0,114270.0,0.455]
[1759277226344,0.57984375,114280.0,114270.0,0.7044]
[1759277226939,0.17502406,114270.0,114260.0,0.53903841]
[1759277227283,0.26644953,114270.0,114260.0,6.63429241]
[1759277227544,0.29263953,114270.0,114260.0,6.72328241]
[1759277228183,0.29263953,114270.0,114260.0,6.72528241]
[1759277228739,0.29263953,114270.0,114260.0,5.65684241]
[1759277228971,0.29263953,114270.0,114260.0,6.72528241]
[1759277229387,0.29263953,114270.0,114260.0,5.65684241]
[1759277229566,0.28938953,114270.0,114260.0,6.72729241]
[1759277230295,0.29263953,114270.0,114260.0,6.72528241]
[1759277230509,0.11761547,114270.0,114260.0,6.72528241]
[1759277231234,0.11436547,114270.0,114260.0,6.72729241]
[1759277231854,0.11761547,114270.0,114260.0,6.72528241]
[1759277232004,0.11761547,114270.0,114260.0,6.72729241]
[1759277232233,0.29263953,114270.0,114260.0,6.72528241]
[1759277232456,0.28938953,114270.0,114260.0,6.72729241]
[1759277232620,0.29263953,114270.0,114260.0,6.72528241]
[1759277233036,0.29263953,114270.0,114260.0,5.65684241]
[1759277233246,0.29263953,114270.0,114260.0,1.0704]
[1759277233739,0.29263953,114270.0,114260.0,0.70644]
[1759277233945,0.29263953,114270.0,114260.0,0.002]
[1759277234148,0.29263953,114270.0,114260.0,0.70644]
[1759277234956,0.29263953,114270.0,114260.0,0.70444]
[1759277235254,0.29263953,114270.0,114260.0,0.70644]
[1759277235604,0.29263953,114270.0,114260.0,0.70444]
[1759277237113,0.29363953,114270.0,114260.0,0.70444]
[1759277238216,0.17503938,114260.0,114250.0,0.48791338]
[1759277238420,0.26966485,114260.0,114250.0,1.34487786]
[1759277238622,0.29267485,114260.0,114250.0,1.34487786]
[1759277239139,0.29267485,114260.0,114250.0,1.34495786]
[1759277239778,0.29267485,114260.0,114250.0,1.25395786]
[1759277240006,0.29267485,114260.0,114250.0,1.34495786]
[1759277240443,0.29267485,114260.0,114250.0,1.16990316]
[1759277240590,0.29267485,114260.0,114250.0,1.17190316]
[1759277240797,0.29267485,114260.0,114250.0,1.34695786]
[1759277241010,0.28942485,114260.0,114250.0,1.34892786]
[1759277241554,0.29246485,114260.0,114250.0,1.34695786]
[1759277242465,0.29246485,114260.0,114250.0,0.27851786]
[1759277242672,0.29246485,114260.0,114250.0,1.34703786]
[1759277243847,0.29246485,114260.0,114250.0,0.27851786]
[1759277244053,0.29246485,114260.0,114250.0,1.34896786]
[1759277244248,0.29246485,114260.0,114250.0,0.89191786]
[1759277244453,0.29246485,114260.0,114250.0,1.34695786]
[1759277244653,0.29246485,114260.0,114250.0,0.27851786]
[1759277245138,0.29246485,114260.0,114250.0,1.34691786]
[1759277246084,0.29246485,114260.0,114250.0,1.34888786]
[1759277246658,0.29246485,114260.0,114250.0,1.34691786]
[1759277247422,0.29246485,114260.0,114250.0,1.0684]
[1759277247628,0.29246485,114260.0,114250.0,1.2434547]
[1759277249552,0.29246485,114260.0,114250.0,1.27865664]
[1759277249753,0.29246485,114260.0,114250.0,1.10360194]
[1759277249966,0.29246485,114260.0,114250.0,0.03520194]
[1759277250168,0.29246485,114260.0,114250.0,0.97732]
[1759277250386,0.29246485,114260.0,114250.0,1.06832]
[1759277251085,0.29246485,114260.0,114250.0,1.10302068]
[1759277251472,0.29246485,114260.0,114250.0,1.27807538]
[1759277251901,0.29246485,114260.0,114250.0,1.34490918]
[1759277253097,0.29246485,114260.0,114250.0,1.16985448]
[1759277253321,0.29246485,114260.0,114250.0,0.82961448]
[1759277253536,0.29246485,114260.0,114250.0,1.16985448]
[1759277253852,0.29246485,114260.0,114250.0,0.10153448]
[1759277253990,0.29246485,114260.0,114250.0,1.16985448]
[1759277254188,0.29246485,114260.0,114250.0,1.06832]
[1759277255181,0.29246485,114260.0,114240.0,0.54859776]
[1759277255362,0.20017906,114260.0,114250.0,6.58385209]
[1759277255657,8.57542406,114260.0,114250.0,1.06832]
[1759277255858,8.57846406,114260.0,114250.0,1.06832]
[1759277256134,8.57846406,114260.0,114240.0,0.0248]
[1759277256353,0.1750547,114250.0,114240.0,0.0908452]
[1759277256579,0.1802547,114250.0,114240.0,1.06832]
[1759277256806,0.2045147,114250.0,114240.0,1.06832]
[1759277257993,0.17507002,114240.0,114230.0,0.45984513]
[1759277258198,0.17723002,114240.0,114230.0,6.25694913]
[1759277258410,0.20453002,114240.0,114230.0,6.25694913]
[1759277258640,0.20453002,114240.0,114230.0,7.32526913]
[1759277258998,0.20453002,114240.0,114230.0,6.25695042]
[1759277259203,0.20453002,114240.0,114230.0,7.32927042]
[1759277261113,0.20453002,114240.0,114230.0,6.15112152]
[1759277261319,0.20453002,114240.0,114230.0,0.88544234]
[1759277261320,0.29391549,114240.0,114230.0,0.88544234]
[1759277261491,0.29391549,114240.0,114230.0,1.07232]
[1759277261689,0.3201953,114240.0,114230.0,1.07232]
[1759277263247,0.3201953,114240.0,114230.0,0.004]
[1759277263399,0.3201953,114240.0,114230.0,0.70832]
[1759277263838,0.3201953,114240.0,114230.0,0.004]
[1759277264019,0.3201953,114240.0,114230.0,0.70832]
[1759277271182,0.3201953,114240.0,114230.0,0.004]
[1759277271394,0.3201953,114240.0,114230.0,0.7084]
[1759277272343,0.3201953,114240.0,114230.0,0.004]
[1759277272617,0.3201953,114240.0,114230.0,0.45912]
[1759277272791,0.3201953,114240.0,114230.0,0.7084]
[1759277273468,0.17508535,114230.0,114220.0,0.4225794]
[1759277273704,0.26964082,114230.0,114220.0,1.1042794]
[1759277273942,0.29301082,114230.0,114210.0,0.27171994]
[1759277274154,0.20362535,114230.0,114220.0,6.72342468]
[1759277274379,0.20059535,114230.0,114220.0,1.24362068]
[1759277274585,0.20059535,114230.0,114220.0,0.03488872]
[1759277274756,0.20362535,114230.0,114220.0,0.7044]
[1759277274962,0.20362535,114230.0,114220.0,0.7084]
[1759277275530,0.29301082,114230.0,114220.0,0.7084]
[1759277278331,0.35301082,114230.0,114220.0,0.7084]
[1759277280749,0.35301082,114230.0,114220.0,0.004]
[1759277280983,0.35301082,114230.0,114220.0,0.7084]
[1759277281215,0.37929201,114230.0,114220.0,0.7084]
[1759277281924,0.17510068,114220.0,114210.0,0.3876]
[1759277282158,0.26965615,114220.0,114210.0,0.03621514]
[1759277282392,0.29302615,114220.0,114210.0,1.10473514]
[1759277282836,0.17511601,114210.0,114200.0,0.54727903]
[1759277283061,0.26967148,114210.0,114200.0,1.06852]
[1759277283273,0.29304148,114210.0,114200.0,1.0685666]
[1759277283453,0.29304148,114210.0,114200.0,4.66e-05]
[1759277283659,0.29304148,114210.0,114200.0,1.0685666]
[1759277284072,0.29304148,114210.0,114200.0,1.0755666]
[1759277284279,0.29304148,114210.0,114200.0,1.0685666]
[1759277284698,0.29304148,114210.0,114200.0,1.0725666]
[1759277284894,0.29304148,114210.0,114200.0,0.0040466]
[1759277285101,0.29304148,114210.0,114200.0,1.0685666]
[1759277285308,0.29304148,114210.0,114200.0,1.0695666]
[1759277285848,0.29304148,114210.0,114200.0,1.24469794]
[1759277286887,0.29304148,114210.0,114200.0,1.0695666]
[1759277287269,0.29304148,114210.0,114200.0,0.09104]
[1759277287471,0.29304148,114210.0,114190.0,0.30032145]
[1759277287637,0.20076559,114210.0,114200.0,5.570844]
[1759277287861,0.20076559,114210.0,114200.0,0.09104]
[1759277288421,0.20076559,114210.0,114190.0,0.30032145]
[1759277288422,0.17513134,114200.0,114190.0,0.30032145]
[1759277288555,0.17727134,114200.0,114190.0,6.43700545]
[1759277288765,0.20367134,114200.0,114190.0,6.44576278]
[1759277288974,0.29305681,114200.0,114190.0,6.44576278]
[1759277289335,0.29305681,114200.0,114190.0,6.10540278]
[1759277289528,0.29305681,114200.0,114190.0,6.37912376]
[1759277289968,0.29305681,114200.0,114190.0,6.03876376]
[1759277290145,0.29305681,114200.0,114190.0,6.37912376]
[1759277290354,0.29305681,114200.0,114190.0,6.38212376]
[1759277290553,0.29305681,114200.0,114190.0,6.04176376]
[1759277290751,0.29305681,114200.0,114190.0,6.38212376]
[1759277291982,0.29305681,114200.0,114190.0,0.90231976]
[1759277292175,0.11792547,114200.0,114190.0,6.38212376]
[1759277294430,0.11792547,114200.0,114190.0,6.04176376]
[1759277294631,0.29305681,114200.0,114190.0,6.38212376]
[1759277294970,0.29305681,114200.0,114190.0,6.37912376]
[1759277295179,0.29305681,114200.0,114190.0,1.26351976]
[1759277295335,0.29305681,114200.0,114190.0,1.62771976]
[1759277297067,0.29305681,114200.0,114190.0,1.65471976]
[1759277298722,0.29305681,114200.0,114190.0,0.58595976]
[1759277298928,0.29305681,114200.0,114190.0,1.22367976]
[1759277299132,0.29305681,114200.0,114190.0,0.24595976]
[1759277299362,0.29305681,114200.0,114190.0,1.31471976]
[1759277299573,0.29305681,114200.0,114190.0,1.30596243]
[1759277300507,0.29305681,114200.0,114190.0,1.21492243]
[1759277300705,0.29305681,114200.0,114190.0,1.30596243]
[1759277302734,0.29002681,114200.0,114190.0,0.23933243]
[1759277302873,0.29302681,114200.0,114190.0,1.30596243]
[1759277303301,0.11789547,114200.0,114190.0,1.30596243]
[1759277305207,0.11489547,114200.0,114190.0,1.30809243]
[1759277305608,0.11789547,114200.0,114190.0,1.30596243]
[1759277310488,0.11789547,114200.0,114190.0,0.23720243]
[1759277310632,0.11789547,114200.0,114190.0,1.30596243]
[1759277312105,0.11789547,114200.0,114190.0,6.78576643]
[1759277312311,0.11275547,114200.0,114190.0,7.13098643]
[1759277313457,0.02337,114200.0,114190.0,7.13098643]
[1759277313954,0.02337,114200.0,114190.0,7.19334877]
[1759277314908,0.02337,114200.0,114190.0,7.21950783]
[1759277315342,0.00013958,114210.0,114190.0,7.21950783]
[1759277315550,0.00013958,114210.0,114200.0,6.29101753]
[1759277315745,0.00013958,114210.0,114200.0,6.06473514]
[1759277315954,0.00013958,114210.0,114200.0,6.08972514]
[1759277316156,0.00013958,114210.0,114200.0,6.26485648]
[1759277316358,1e-08,114210.0,114200.0,6.38439385]
[1759277316577,1e-08,114210.0,114200.0,6.24648068]
[1759277316783,1e-08,114210.0,114200.0,6.10430808]
[1759277316962,1e-08,114210.0,114200.0,6.92370808]
[1759277317571,1e-08,114210.0,114200.0,6.95070808]
[1759277317773,0.00700001,114210.0,114200.0,5.88198808]
[1759277317940,1e-08,114210.0,114200.0,6.92362808]
[1759277318316,0.00500001,114210.0,114200.0,6.89746902]
[1759277318735,0.00500001,114210.0,114200.0,7.23746902]
[1759277318888,1e-08,114210.0,114200.0,7.23746902]
[1759277319090,1e-08,114210.0,114200.0,6.16882902]
[1759277319294,0.00500001,114210.0,114200.0,7.23746902]
[1759277321525,0.00500001,114210.0,114200.0,7.23742902]
[1759277321827,0.00500001,114210.0,114200.0,7.29979136]
[1759277322815,0.00500001,114210.0,114200.0,6.23119136]
[1759277323157,0.00500001,114210.0,114200.0,7.29967136]
[1759277323890,0.00500001,114210.0,114200.0,6.23119136]
[1759277324051,0.00500001,114210.0,114200.0,6.11165399]
[1759277324257,0.00702001,114210.0,114200.0,6.52544165]
[1759277324462,0.01002001,114210.0,114200.0,5.70620165]
[1759277324678,0.01002001,114210.0,114200.0,6.52544165]
[1759277324845,0.01002001,114210.0,114200.0,5.67779534]
[1759277325084,0.01002001,114210.0,114200.0,7.08627534]
[1759277325284,0.09940548,114210.0,114200.0,7.08627534]
[1759277325549,0.09640548,114210.0,114200.0,7.08627534]
[1759277325694,0.09140548,114210.0,114200.0,6.74840534]
[1759277326096,0.09538548,114210.0,114200.0,6.74840534]
[1759277326296,0.00600001,114210.0,114200.0,7.09149534]
[1759277326597,0.00600001,114210.0,114200.0,7.18013597]
[1759277327520,0.00600001,114210.0,114200.0,6.11165597]
[1759277327837,0.00802001,114210.0,114200.0,7.08840534]
[1759277328022,0.00600001,114210.0,114200.0,6.01992534]
[1759277328202,0.00600001,114210.0,114200.0,7.09149534]
[1759277329849,0.00600001,114210.0,114200.0,7.15385768]
[1759277332070,0.00600001,114210.0,114200.0,6.08537768]
[1759277332286,0.00600001,114210.0,114200.0,6.69873768]
[1759277332487,0.00600001,114210.0,114200.0,7.15385768]
[1759277332691,0.00600001,114210.0,114200.0,6.08537768]
[1759277332942,0.00600001,114210.0,114200.0,7.15385768]
[1759277334706,0.00600001,114210.0,114200.0,7.18013629]
[1759277335137,0.00600001,114210.0,114200.0,6.87949195]
[1759277335770,0.00797001,114210.0,114200.0,5.80792195]
[1759277335942,0.01116001,114210.0,114200.0,6.84799334]
[1759277336149,0.01116001,114210.0,114200.0,5.77951334]
[1759277336353,0.01116001,114210.0,114200.0,6.84799334]
[1759277336643,0.00797001,114210.0,114200.0,6.85002334]
[1759277337604,0.00797001,114210.0,114200.0,5.77951334]
[1759277337730,0.19834121,114220.0,114210.0,2.32883999]
[1759277337934,0.28772668,114220.0,114210.0,7.47960199]
[1759277338286,0.28969668,114220.0,114210.0,8.32316199]
[1759277339020,0.28969668,114220.0,114210.0,8.33016199]
[1759277339224,0.29869668,114220.0,114210.0,8.505278]
[1759277340055,0.29869668,114220.0,114210.0,8.33016199]
[1759277340252,0.29869668,114220.0,114210.0,7.26168199]
[1759277340459,6.35508501,114210.0,114200.0,0.51811134]
[1759277340660,6.62155649,114210.0,114200.0,5.75868334]
[1759277340873,6.46895048,114210.0,114200.0,6.21380334]
[1759277341099,6.46895048,114210.0,114200.0,6.21678334]
[1759277341653,6.46895048,114210.0,114200.0,6.46602334]
[1759277341860,6.46895048,114210.0,114200.0,5.76166334]
[1759277342060,6.46895048,114210.0,114200.0,6.46602334]
[1759277342287,6.47295048,114210.0,114200.0,6.47902334]
[1759277343366,6.47295048,114210.0,114200.0,5.77466334]
[1759277343572,6.47295048,114210.0,114200.0,6.47902334]
[1759277345267,6.47295048,114210.0,114200.0,6.84314334]
[1759277345877,6.47492048,114210.0,114200.0,6.84016334]
[1759277346206,6.47295048,114210.0,114200.0,6.84314334]
[1759277347381,6.47492048,114210.0,114200.0,6.84314334]
[1759277348308,6.47295048,114210.0,114200.0,6.84314334]
[1759277351662,6.47295048,114210.0,114200.0,5.77466334]
[1759277351956,6.47492048,114210.0,114200.0,6.84028334]